bitfinex-derivatives/quotes_BTCF0:USTF0_20241120
["timestamp","ask_amount","ask_price","bid_price","bid_amount"]
[1732113570103,0.3608,94171.0,94169.0,0.053045]
[1732113570291,0.00010478,94170.0,94169.0,0.053045]
[1732113571299,0.00010478,94170.0,94169.0,0.04202266]
[1732113571507,0.00010478,94170.0,94155.0,0.18864209]
[1732113571806,0.00010478,94170.0,94155.0,0.24169509]
[1732113571993,0.00010478,94170.0,94169.0,0.053045]
[1732113572395,0.3608,94182.0,94164.0,0.6108078]
[1732113572599,0.3608,94182.0,94181.0,0.053044]
[1732113573108,0.3608,94182.0,94173.0,0.18864209]
[1732113573312,0.3608,94182.0,94166.0,0.053052]
[1732113573313,0.3608,94174.0,94166.0,0.053052]
[1732113573600,0.3608,94169.0,94164.0,0.37786571]
[1732113573812,0.3608,94169.0,94164.0,0.35664]
[1732113574195,0.053067,94140.0,94139.0,0.31593277]
[1732113574404,1.913867,94140.0,94139.0,0.25003277]
[1732113574606,1.913867,94140.0,94133.0,0.37498047]
[1732113574607,0.05307,94134.0,94133.0,0.62501324]
[1732113574914,0.31868,94139.0,94109.0,0.25003277]
[1732113575099,0.7216,94110.0,94094.0,0.053093]
[1732113575405,0.3608,94101.0,94094.0,0.053093]
[1732113575608,0.3608,94101.0,94096.0,0.07431299]
[1732113576114,0.3608,94101.0,94100.0,0.471889]
[1732113576309,0.3608,94101.0,94100.0,0.153089]
[1732113576893,0.2948,94101.0,94100.0,0.153089]
[1732113577098,0.2948,94101.0,94100.0,0.471889]
[1732113577311,1.50056001,94108.0,94107.0,0.053085]
[1732113577312,0.36136001,94108.0,94107.0,0.053085]
[1732113577496,7.896e-05,94109.0,94107.0,0.053085]
[1732113577698,0.3608,94126.0,94108.0,0.6796]
[1732113577907,0.3608,94126.0,94125.0,0.053075]
[1732113578110,0.3608,94150.0,94131.0,0.053072]
[1732113578299,0.3608,94161.0,94119.0,0.53575949]
[1732113578499,0.3608,94161.0,94144.0,0.053064]
[1732113578710,0.00010793,94160.0,94159.0,0.053056]
[1732113579011,0.00010793,94160.0,94157.0,9.193e-05]
[1732113579012,0.36090793,94160.0,94157.0,9.193e-05]
[1732113579397,0.00010793,94160.0,94157.0,9.193e-05]
[1732113579614,0.3608,94158.0,94157.0,9.193e-05]
[1732113580303,0.00010793,94160.0,94157.0,9.193e-05]
[1732113581107,0.3608,94158.0,94157.0,9.193e-05]
[1732113581513,0.3608,94158.0,94157.0,0.31869193]
[1732113581817,0.00010793,94160.0,94158.0,0.053057]
[1732113582014,0.00010793,94160.0,94157.0,0.36149193]
[1732113582307,0.00010793,94160.0,94159.0,0.053056]
[1732113582522,0.3608,94191.0,94159.0,0.59655949]
[1732113582699,0.3608,94191.0,94159.0,0.89655949]
[1732113582904,0.3608,94182.0,94173.0,0.053048]
[1732113583103,0.3608,94182.0,94181.0,0.053044]
[1732113583609,0.3608,94203.0,94172.0,0.053049]
[1732113583813,0.3608,94182.0,94158.0,0.0403]
[1732113584015,0.3608,94165.0,94157.0,0.021329]
[1732113584307,0.3608,94173.0,94157.0,0.021329]
[1732113584308,0.3608,94158.0,94157.0,9.193e-05]
[1732113584508,0.413857,94158.0,94157.0,9.193e-05]
[1732113585011,0.732457,94158.0,94157.0,9.193e-05]
[1732113585410,0.732457,94158.0,94128.0,0.35672]
[1732113585411,0.979491,94158.0,94101.0,0.23575949]
[1732113585604,0.3608,94118.0,94103.0,0.02123707]
[1732113585800,0.3608,94107.0,94101.0,0.23575949]
[1732113586001,0.3608,94107.0,94088.0,0.35672]
[1732113586002,0.3608,94106.0,94088.0,0.35672]
[1732113586513,0.3608,94106.0,94093.0,0.053093]
[1732113586514,9.193e-05,94105.0,94093.0,0.053093]
[1732113586716,9.193e-05,94105.0,94103.0,0.053088]
[1732113587316,9.193e-05,94105.0,94090.0,0.25708474]
[1732113587612,0.3608,94104.0,94096.0,0.053091]
[1732113588000,0.3608,94104.0,94100.0,0.055]
[1732113588700,9.193e-05,94105.0,94100.0,0.055]
[1732113589208,0.3608,94104.0,94100.0,0.055]
[1732113590305,9.193e-05,94105.0,94104.0,0.053087]
[1732113591714,9.193e-05,94105.0,94100.0,0.055]
[1732113592018,0.3608,94101.0,94100.0,0.055]
[1732113592514,0.3608,94101.0,94090.0,9.472e-05]
[1732113592515,0.053094,94092.0,94090.0,9.472e-05]
[1732113592701,0.3608,94091.0,94090.0,9.472e-05]
[1732113594115,0.3608,94094.0,94092.0,0.053093]
[1732113594303,0.3608,94094.0,94090.0,9.472e-05]
[1732113594500,0.3608,94094.0,94093.0,0.053093]
[1732113594716,9.193e-05,94105.0,94090.0,9.472e-05]
[1732113595214,9.193e-05,94105.0,94093.0,0.053093]
[1732113595512,9.193e-05,94105.0,94096.0,0.053092]
[1732113595706,9.193e-05,94105.0,94090.0,9.472e-05]
[1732113596014,9.193e-05,94105.0,94097.0,0.3608]
[1732113596201,9.193e-05,94105.0,94090.0,9.472e-05]
[1732113596407,9.193e-05,94105.0,94097.0,0.36230552]
[1732113596605,9.193e-05,94105.0,94097.0,0.00150552]
[1732113596912,0.41389,94098.0,94097.0,0.00150552]
[1732113597806,1.91389,94098.0,94097.0,0.00150552]
[1732113598108,0.41389,94098.0,94097.0,0.00150552]
[1732113598418,0.73269,94098.0,94097.0,0.00150552]
[1732113598604,2.53269,94098.0,94097.0,0.00150552]
[1732113598804,2.23269,94098.0,94097.0,0.00150552]
[1732113599114,1.91389,94098.0,94097.0,0.00150552]
[1732113599606,2.23269,94098.0,94097.0,0.00150552]
[1732113600103,1.91389,94098.0,94097.0,0.00150552]
[1732113600303,0.41389,94098.0,94097.0,0.00150552]
[1732113600509,0.3608,94098.0,94097.0,0.00150552]
[1732113600820,0.7216,94098.0,94097.0,0.00150552]
[1732113601903,9.193e-05,94105.0,94097.0,0.00150552]
[1732113602113,0.3608,94099.0,94097.0,0.00150552]
[1732113602515,0.3608,94099.0,94098.0,0.00150552]
[1732113602816,9.193e-05,94105.0,94098.0,0.00150552]
[1732113603008,9.193e-05,94105.0,94075.0,0.3608]
[1732113603009,0.3608,94099.0,94075.0,0.35890736]
[1732113603214,0.3608,94099.0,94081.0,0.0531]
[1732113603609,0.3608,94099.0,94075.0,0.04320224]
[1732113603610,0.3608,94099.0,94087.0,0.053097]
[1732113603914,0.3608,94099.0,94060.0,0.053111]
[1732113603915,0.3608,94088.0,94074.0,0.15444868]
[1732113604104,0.3608,94088.0,94080.0,0.0531]
[1732113604311,0.3608,94088.0,94074.0,0.15444868]
[1732113604612,0.3608,94090.0,94089.0,0.053096]
[1732113605004,0.3608,94099.0,94098.0,0.05309]
[1732113605415,9.193e-05,94105.0,94104.0,0.053087]
[1732113605817,9.193e-05,94105.0,94090.0,0.0462]
[1732113606011,0.3608,94096.0,94095.0,0.053092]
[1732113606216,0.3608,94096.0,94091.0,0.053094]
[1732113606413,0.3608,94096.0,94090.0,0.0462]
[1732113606719,0.3608,94096.0,94078.0,0.02124213]
[1732113607016,0.7216,94079.0,94067.0,0.0451]
[1732113607220,0.3608,94077.0,94072.0,0.04314901]
[1732113607413,0.3608,94077.0,94074.0,0.053104]
[1732113607612,0.3608,94077.0,94075.0,0.053103]
[1732113607919,0.3608,94093.0,94073.0,0.31888]
[1732113608111,0.3608,94098.0,94072.0,0.15457969]
[1732113608112,0.053091,94097.0,94079.0,0.053101]
[1732113608419,0.053091,94097.0,94072.0,0.15457969]
[1732113608420,0.3608,94089.0,94072.0,0.15457969]
[1732113608610,0.3608,94080.0,94066.0,0.02124136]
[1732113608924,0.3608,94080.0,94056.0,0.00159426]
[1732113608925,0.3608,94071.0,94056.0,0.00159426]
[1732113609115,0.3608,94071.0,94068.0,0.053107]
[1732113609116,0.22812706,94070.0,94068.0,0.053107]
[1732113609311,0.22812706,94069.0,94068.0,0.053107]
[1732113609508,0.22812706,94069.0,94056.0,0.00170694]
[1732113609819,0.3608,94063.0,94056.0,0.04380306]
[1732113610117,0.00056001,94080.0,94067.0,0.053108]
[1732113610313,0.3608,94096.0,94086.0,0.053097]
[1732113610516,0.0049,94124.0,94095.0,0.3608]
[1732113610716,0.26125651,94126.0,94125.0,0.053075]
[1732113610917,0.0049,94159.0,94149.0,0.053061]
[1732113611121,0.00010788,94158.0,94141.0,0.0001022]
[1732113611425,0.3608,94156.0,94141.0,0.0531682]
[1732113611721,0.3608,94153.0,94143.0,0.3608]
[1732113611909,0.3608,94153.0,94142.0,0.413865]
[1732113612106,0.3608,94153.0,94141.0,0.0001022]
[1732113612107,0.3608,94153.0,94141.0,0.3609022]
[1732113612315,0.3608,94153.0,94146.0,0.053063]
[1732113612528,0.3608,94152.0,94146.0,0.053063]
[1732113612711,0.3608,94150.0,94149.0,0.053062]
[1732113613125,0.00010788,94158.0,94148.0,0.15444868]
[1732113613308,0.00010788,94158.0,94157.0,0.053057]
[1732113613723,0.00010788,94158.0,94157.0,0.20750568]
[1732113615111,0.00010788,94158.0,94141.0,0.0001022]
[1732113615324,0.3608,94149.0,94145.0,0.053063]
[1732113615725,0.3608,94149.0,94141.0,0.0001022]
[1732113616019,0.3608,94149.0,94146.0,0.02124139]
[1732113616230,0.3608,94149.0,94141.0,0.0001022]
[1732113616522,0.00010788,94158.0,94141.0,0.0001022]
[1732113616523,0.3608,94142.0,94141.0,0.0001022]
[1732113616718,1.8608,94142.0,94141.0,0.0001022]
[1732113616926,0.3608,94153.0,94151.0,0.05306]
[1732113617127,0.3608,94153.0,94152.0,0.15444868]
[1732113617327,0.3608,94153.0,94141.0,0.0001022]
[1732113617517,0.3608,94144.0,94141.0,0.0001022]
[1732113617711,0.3608,94144.0,94142.0,0.053065]
[1732113617925,0.3608,94144.0,94141.0,0.0001022]
[1732113618129,0.3608,94144.0,94131.0,0.15444868]
[1732113618319,0.3608,94135.0,94123.0,0.053076]
[1732113618516,0.3608,94126.0,94124.0,0.410075]
[1732113618827,0.3608,94126.0,94124.0,0.357]
[1732113619614,0.41387,94135.0,94124.0,0.357]
[1732113620224,0.3608,94135.0,94124.0,0.357]
[1732113620419,0.3608,94125.0,94124.0,0.357]
[1732113620829,0.413875,94125.0,94124.0,0.357]
[1732113621029,0.3608,94125.0,94124.0,0.357]
[1732113621526,0.3608,94125.0,94115.0,0.00012969]
[1732113621527,0.05308,94117.0,94115.0,0.00012969]
[1732113621730,0.3608,94116.0,94115.0,0.00012969]
[1732113621929,0.360889,94116.0,94115.0,0.00012969]
[1732113622631,0.053084,94110.0,94092.0,0.35688]
[1732113622831,0.05309,94099.0,94092.0,0.35688]
[1732113623028,0.3608,94093.0,94092.0,0.35688]
[1732113623520,0.3608,94103.0,94097.0,0.053091]
[1732113623717,0.3608,94099.0,94092.0,0.35688]
[1732113623928,0.3608,94093.0,94092.0,0.35688]
[1732113624123,0.413893,94093.0,94092.0,0.35688]
[1732113624319,0.3608,94093.0,94092.0,0.35688]
[1732113624526,0.053095,94090.0,94089.0,0.00011752]
[1732113624825,0.3608,94093.0,94089.0,0.00011752]
[1732113625034,0.053095,94091.0,94089.0,0.00011752]
[1732113625222,0.0531,94082.0,94063.0,0.35688]
[1732113625423,0.3608,94069.0,94068.0,0.15444868]
[1732113627032,0.41398145,94069.0,94063.0,0.35688]
[1732113627333,0.053114,94057.0,94045.0,0.04228396]
[1732113627527,0.3608,94056.0,94045.0,0.04228396]
[1732113628232,0.053123,94041.0,94036.0,0.00159453]
[1732113628419,1.13420868,94056.0,94036.0,0.00159453]
[1732113628420,0.774725,94037.0,94036.0,0.00159453]
[1732113628628,0.7216,94037.0,94011.0,0.15444868]
[1732113628826,0.3608,94023.0,94019.0,0.15444868]
[1732113629232,0.3608,94021.0,94000.0,0.56156]
[1732113629430,0.3608,94001.0,94000.0,0.253146]
[1732113629729,0.3608,94020.0,94002.0,0.053144]
[1732113629944,0.3608,94020.0,94003.0,0.15444868]
[1732113630124,0.00013051,94022.0,94012.0,0.51524868]
[1732113630327,0.00013051,94022.0,94020.0,0.053134]
[1732113630520,0.00013051,94022.0,94021.0,0.3608]
[1732113630726,0.00013051,94022.0,94011.0,0.3608]
[1732113630936,0.00013051,94022.0,94003.0,0.3608]
[1732113630937,0.00013051,94022.0,94002.0,0.357]
[1732113631334,0.51524868,94016.0,94002.0,0.357]
[1732113631829,0.3608,94007.0,94002.0,0.357]
[1732113632230,0.3608,94003.0,93974.0,0.005]
[1732113632425,0.3608,94002.0,93983.0,0.053155]
[1732113632837,0.3608,94002.0,93995.0,0.15444868]
[1732113633026,0.0474,94015.0,94000.0,0.155]
[1732113633225,0.15444868,94002.0,94000.0,0.155]
[1732113633630,0.05315,93992.0,93977.0,0.00159596]
[1732113633831,0.35934049,93978.0,93961.0,0.053167]
[1732113634338,0.35934049,93978.0,93962.0,0.053167]
[1732113634339,0.3608,93968.0,93962.0,0.053167]
[1732113634639,0.15444868,93963.0,93937.0,0.005]
[1732113634845,0.51524868,93938.0,93935.0,0.00010126]
[1732113635032,0.3608,93938.0,93935.0,0.00010126]
[1732113635236,0.3608,93955.0,93935.0,0.00010126]
[1732113635540,0.3608,93955.0,93942.0,0.15444868]
[1732113635726,0.3608,93955.0,93945.0,0.3608]
[1732113636037,0.3608,93955.0,93937.0,0.23704269]
[1732113636243,0.3608,93955.0,93935.0,0.00010126]
[1732113636244,0.3608,93942.0,93935.0,0.00010126]
[1732113636548,0.3608,93955.0,93937.0,0.23704269]
[1732113636725,1.5,93941.0,93937.0,0.23704269]
[1732113637235,0.3608,93955.0,93939.0,0.3608]
[1732113637424,0.00011573,93967.0,93935.0,0.00010126]
[1732113637425,0.3608,93962.0,93954.0,0.23704269]
[1732113637629,0.00011573,93967.0,93954.0,0.23704269]
[1732113637826,0.3608,93962.0,93949.0,0.23704269]
[1732113638126,0.3608,93954.0,93949.0,0.23704269]
[1732113638328,0.3608,93962.0,93949.0,0.23704269]
[1732113638542,0.1693264,93952.0,93946.0,0.249627]
[1732113638731,0.36076,93962.0,93951.0,0.249627]
[1732113638931,0.00011573,93967.0,93950.0,0.249627]
[1732113639339,0.00011573,93967.0,93949.0,0.249627]
[1732113639527,0.3608,93961.0,93947.0,0.3608]
[1732113639728,0.3608,93948.0,93939.0,0.3608]
[1732113639934,0.053171,93955.0,93946.0,0.009]
[1732113640139,0.3608,93964.0,93946.0,0.009]
[1732113640334,1.5,93963.0,93946.0,0.009]
[1732113640545,0.3608,93953.0,93946.0,0.009]
[1732113640728,0.413973,93953.0,93946.0,0.009]
[1732113641243,0.053176,93948.0,93946.0,0.009]
[1732113641437,0.3608,93953.0,93946.0,0.009]
[1732113641637,0.7216,93953.0,93946.0,0.009]
[1732113642035,0.053176,93947.0,93946.0,0.009]
[1732113642236,0.053181,93939.0,93935.0,0.00010126]
[1732113642435,0.053182,93936.0,93935.0,0.00010126]
[1732113642945,0.372542,93936.0,93935.0,0.00010126]
[1732113643326,0.3194871,93936.0,93935.0,0.00010126]
[1732113643536,0.0001271,93936.0,93935.0,0.00010126]
[1732113644953,0.3194871,93936.0,93935.0,0.00010126]
[1732113645140,0.6194871,93936.0,93935.0,0.00010126]
[1732113645439,0.6194871,93936.0,93909.0,0.3608]
[1732113645440,0.3194871,93936.0,93909.0,0.3608]
[1732113645739,0.053189,93923.0,93903.0,0.02127207]
[1732113646041,1.5,93935.0,93900.0,0.1]
[1732113646042,0.053197,93909.0,93900.0,0.1]
[1732113646231,0.05330547,93909.0,93900.0,0.1]
[1732113646426,0.05330547,93909.0,93878.0,0.005]
[1732113646427,0.31948,93908.0,93878.0,0.005]
[1732113646636,0.3608,93883.0,93873.0,8.892e-05]
[1732113646846,0.05321,93887.0,93873.0,8.892e-05]
[1732113647140,0.053217,93875.0,93873.0,8.892e-05]
[1732113647328,0.3608,93884.0,93873.0,8.892e-05]
[1732113647938,1.50064,93894.0,93873.0,8.892e-05]
[1732113647939,0.3608,93890.0,93874.0,0.3158]
[1732113648145,0.00124001,93894.0,93886.0,0.3608]
[1732113648448,0.3608,93911.0,93886.0,0.3608]
[1732113648736,0.3608,93911.0,93901.0,0.3608]
[1732113648938,0.3608,93921.0,93908.0,0.3608]
[1732113649248,0.3608,93921.0,93902.0,0.053201]
[1732113649431,0.3608,93934.0,93908.0,0.3608]
[1732113649636,0.3608,93934.0,93920.0,0.59784269]
[1732113649835,0.3608,93947.0,93920.0,0.59784269]
[1732113650135,0.3608,93922.0,93906.0,0.249627]
[1732113650335,0.3608,93922.0,93897.0,0.00729731]
[1732113650336,0.00011775,93921.0,93901.0,0.005]
[1732113650528,0.3608,93912.0,93901.0,0.005]
[1732113650835,0.3608,93912.0,93897.0,0.00159731]
[1732113650836,0.04152541,93912.0,93897.0,0.00159731]
[1732113651340,0.04152541,93912.0,93897.0,0.36239731]
[1732113651535,0.053191,93920.0,93897.0,0.00159731]
[1732113651735,0.00011775,93921.0,93897.0,0.00159731]
[1732113651940,0.053194,93916.0,93900.0,0.3608]
[1732113652142,0.00011775,93921.0,93900.0,0.3608]
[1732113652333,0.053194,93916.0,93900.0,0.3608]
[1732113652538,0.00011775,93921.0,93908.0,0.3608]
[1732113652734,0.00011775,93921.0,93916.0,0.3608]
[1732113652935,0.00011775,93921.0,93912.0,0.23704269]
[1732113653134,0.00011775,93921.0,93920.0,0.3608]
[1732113653536,0.1373415,93941.0,93920.0,0.3608]
[1732113653740,0.04201321,93963.0,93940.0,0.3608]
[1732113653939,0.053185,93931.0,93930.0,0.3608]
[1732113654441,0.053173,93953.0,93930.0,0.3608]
[1732113654640,0.05330085,93931.0,93930.0,0.3608]
[1732113654847,1.55330085,93931.0,93930.0,0.3608]
[1732113655047,1.50011585,93931.0,93930.0,0.3608]
[1732113655741,0.00011585,93931.0,93930.0,0.3608]
[1732113655938,0.00159783,93966.0,93930.0,0.6802]
[1732113655939,0.053168,93961.0,93930.0,0.6802]
[1732113656141,0.00159783,93966.0,93960.0,0.7216]
[1732113656646,0.053167,93962.0,93960.0,0.3608]
[1732113656845,0.00011997,93961.0,93960.0,0.3608]
[1732113657543,0.00011997,93961.0,93947.0,0.3608]
[1732113657544,0.053175,93949.0,93947.0,0.3608]
[1732113658243,0.053172,93954.0,93947.0,0.3608]
[1732113659040,1.50011997,93961.0,93947.0,0.3608]
[1732113659347,0.053169,93960.0,93958.0,0.3608]
[1732113659746,0.053174,93951.0,93950.0,0.25217629]
[1732113660044,0.053174,93951.0,93949.0,0.25217629]
[1732113660242,1.50067998,93961.0,93950.0,0.19147497]
[1732113660439,1.50011997,93961.0,93960.0,0.78931766]
[1732113661345,0.26995757,93961.0,93960.0,1.16263054]
[1732113661549,0.0049,93994.0,93960.0,1.16263054]
[1732113661738,0.02127256,94005.0,93984.0,0.19147497]
[1732113662051,0.02127256,94005.0,93970.0,0.25245872]
[1732113662052,0.053162,93971.0,93970.0,0.25245872]
[1732113662240,0.05327922,93971.0,93970.0,0.25245872]
[1732113662438,0.00011722,93971.0,93970.0,0.14147497]
[1732113662647,0.09604525,93998.0,93975.0,0.05316]
[1732113662832,1.5,93997.0,93992.0,0.14147497]
[1732113663038,1.5,93997.0,93992.0,0.09647497]
[1732113663348,0.1,94000.0,93998.0,0.053147]
[1732113663649,8.133e-05,94008.0,93999.0,0.36845319]
[1732113663842,8.133e-05,94008.0,93997.0,0.37826443]
[1732113663843,8.133e-05,94008.0,94000.0,0.36845319]
[1732113664046,8.133e-05,94008.0,93999.0,0.2529044]
[1732113664746,0.053146,94001.0,93999.0,0.2529044]
[1732113664949,8.133e-05,94008.0,93998.0,0.2529044]
[1732113665141,0.053146,93999.0,93996.0,0.36091549]
[1732113665342,0.053147,93997.0,93996.0,0.36091549]
[1732113665745,0.3608,94006.0,93998.0,0.053147]
[1732113665947,8.133e-05,94008.0,94005.0,0.3608]
[1732113666248,8.133e-05,94008.0,94005.0,0.6137044]
[1732113666444,8.133e-05,94008.0,94006.0,0.2529044]
[1732113667842,8.133e-05,94008.0,94005.0,0.6137044]
[1732113668050,1.5,94032.0,94005.0,0.3608]
[1732113668243,1.5,94032.0,94019.0,0.3608]
[1732113668449,0.053127,94033.0,94031.0,0.3608]
[1732113668643,0.23704269,94032.0,94010.0,0.3608]
[1732113668945,0.05314,94011.0,94010.0,0.3608]
[1732113669456,1.50010515,94031.0,94010.0,0.3608]
[1732113669665,0.053134,94021.0,94010.0,0.3608]
[1732113669850,1.50010515,94031.0,94020.0,0.3608]
[1732113670048,0.00010515,94031.0,94030.0,0.3608]
[1732113670651,0.00010515,94031.0,94014.0,0.3608]
[1732113670850,0.00010515,94031.0,94030.0,0.3608]
[1732113671052,0.00010515,94031.0,94014.0,0.3608]
[1732113671053,0.053132,94025.0,94014.0,0.3608]
[1732113671254,0.00010515,94031.0,94014.0,0.3608]
[1732113671556,0.053137,94015.0,94001.0,0.3608]
[1732113671758,0.3608,94002.0,93996.0,0.00011549]
[1732113671960,0.053146,93999.0,93996.0,0.00011549]
[1732113673165,0.0212675,94023.0,93996.0,0.00011549]
[1732113673343,0.04879638,94030.0,93996.0,0.00011549]
[1732113673344,0.053133,94024.0,94011.0,0.3608]
[1732113673653,0.00159638,94030.0,94011.0,0.3608]
[1732113673855,0.053139,94013.0,94011.0,0.3608]
[1732113674049,0.053139,94013.0,94011.0,0.29285]
[1732113674255,0.053146,93999.0,93996.0,0.00011549]
[1732113674451,0.053147,93997.0,93996.0,4.9e-07]
[1732113674862,0.372307,93997.0,93996.0,4.9e-07]
[1732113675557,0.672307,93997.0,93996.0,4.9e-07]
[1732113675759,0.372307,93997.0,93996.0,4.9e-07]
[1732113676062,0.053147,93997.0,93996.0,4.9e-07]
[1732113676355,0.053147,93997.0,93965.0,0.005]
[1732113676356,2.172307,93997.0,93965.0,0.005]
[1732113676656,0.053167,93963.0,93961.0,0.25214384]
[1732113676964,0.053169,93959.0,93958.0,0.00159628]
[1732113677258,0.41406237,93959.0,93943.0,0.25214384]
[1732113677451,0.053179,93942.0,93937.0,0.053181]
[1732113677757,1.5,93941.0,93932.0,0.25214384]
[1732113677949,0.36089337,93959.0,93932.0,0.20714384]
[1732113678150,0.36089337,93959.0,93945.0,0.053177]
[1732113678457,0.053171,93956.0,93943.0,0.053177]
[1732113678653,1.5,93958.0,93932.0,0.053184]
[1732113678853,9.337e-05,93959.0,93957.0,0.05317]
[1732113679753,9.337e-05,93959.0,93958.0,0.3608]
[1732113680157,0.05326237,93959.0,93958.0,0.3608]
[1732113680464,0.05313655,93959.0,93958.0,0.3608]
[1732113680648,0.053166,93965.0,93941.0,0.31517981]
[1732113680849,0.053178,93944.0,93938.0,0.31517981]
[1732113681055,0.053178,93943.0,93942.0,0.3608]
[1732113681461,0.053179,93941.0,93934.0,0.3608]
[1732113681757,0.053181,93939.0,93934.0,0.3608]
[1732113682154,0.0001139,93943.0,93934.0,0.3608]
[1732113682155,0.053183,93935.0,93934.0,0.3608]
[1732113682350,0.053183,93935.0,93934.0,0.7216]
[1732113683167,0.053183,93935.0,93934.0,1.40312792]
[1732113683465,0.053183,93935.0,93934.0,0.7216]
[1732113683768,0.0001139,93943.0,93934.0,0.3608]
[1732113683959,0.0532929,93943.0,93934.0,0.3608]
[1732113684159,0.0001139,93943.0,93942.0,0.3608]
[1732113684468,0.0001139,93943.0,93942.0,0.78012651]
[1732113684759,0.0001139,93943.0,93942.0,0.67694751]
[1732113684963,0.0532919,93943.0,93942.0,0.68236764]
[1732113685163,0.053183,93934.0,93933.0,0.31622013]
[1732113685662,0.0001139,93943.0,93923.0,0.67702013]
[1732113685853,0.0001139,93943.0,93942.0,0.3608]
[1732113686951,0.0001139,93943.0,93942.0,1.04710295]
[1732113687156,0.23704269,93987.0,93942.0,1.48591801]
[1732113687359,0.05476659,93959.0,93950.0,0.37949752]
[1732113687556,0.00159759,93959.0,93951.0,0.36694295]
[1732113688064,0.00010243,93958.0,93955.0,0.3608]
[1732113688257,0.053159,93976.0,93959.0,0.053169]
[1732113688458,0.3608,93981.0,93965.0,0.31623289]
[1732113688666,0.053165,93966.0,93965.0,0.31623289]
[1732113689462,0.053168,93960.0,93955.0,0.67703289]
[1732113689663,0.05325888,93966.0,93956.0,0.3685724]
[1732113689851,0.05325888,93966.0,93955.0,0.67703289]
[1732113689852,9.388e-05,93966.0,93957.0,0.36833371]
[1732113690057,0.053166,93965.0,93955.0,0.3608]
[1732113690253,9.388e-05,93966.0,93961.0,0.053168]
[1732113690458,9.388e-05,93966.0,93965.0,0.3608]
[1732113691068,9.388e-05,93966.0,93965.0,0.72081381]
[1732113691263,9.388e-05,93966.0,93965.0,0.3163486]
[1732113691565,9.388e-05,93966.0,93964.0,0.00072]
[1732113691766,9.388e-05,93966.0,93964.0,0.053166]
[1732113692067,9.388e-05,93966.0,93965.0,0.35942421]
[1732113692255,0.23704269,93988.0,93965.0,0.72022421]
[1732113692455,0.23704269,93988.0,93970.0,0.31630936]
[1732113692669,0.36136001,93992.0,93973.0,0.053161]
[1732113692670,0.053156,93982.0,93973.0,0.053161]
[1732113693174,0.053156,93982.0,93971.0,0.31702936]
[1732113693175,0.413947,93998.0,93979.0,0.3608]
[1732113693361,0.053149,93996.0,93981.0,0.37949752]
[1732113693558,0.00056001,93998.0,93980.0,0.3580348]
[1732113693757,0.05314,94010.0,93993.0,0.3608]
[1732113693959,0.05314,94010.0,93993.0,0.7188348]
[1732113694159,0.3608,94018.0,93993.0,1.39891011]
[1732113694364,0.3608,94018.0,94010.0,0.18971846]
[1732113694365,0.053136,94017.0,94010.0,0.18971846]
[1732113694566,0.0106,94038.0,94006.0,0.3608]
[1732113694567,0.053132,94025.0,94016.0,0.3608]
[1732113695073,0.053122,94042.0,94024.0,0.3608]
[1732113695262,0.053122,94042.0,94040.0,0.18971846]
[1732113695567,0.3608,94064.0,94038.0,0.18971846]
[1732113695771,0.053118,94049.0,94038.0,0.18971846]
[1732113695961,0.3608,94064.0,94038.0,0.18971846]
[1732113696162,0.23704269,94066.0,94042.0,0.3608]
[1732113696365,1.5,94054.0,94050.0,0.3608]
[1732113696564,0.0106,94089.0,94050.0,0.59784269]
[1732113696772,0.053098,94085.0,94077.0,0.3608]
[1732113696976,0.053098,94085.0,94080.0,0.3608]
[1732113697165,0.053092,94095.0,94080.0,0.3608]
[1732113697486,0.3608,94102.0,94080.0,0.3608]
[1732113697677,0.053096,94089.0,94088.0,0.3608]
[1732113697871,0.053096,94089.0,94071.0,0.18971846]
[1732113697872,0.053105,94072.0,94071.0,0.18971846]
[1732113698074,0.053112,94060.0,94059.0,9.151e-05]
[1732113698269,0.29015469,94060.0,94059.0,9.151e-05]
[1732113698579,0.672072,94060.0,94059.0,9.151e-05]
[1732113698774,0.3608,94063.0,94036.0,0.053125]
[1732113698983,0.053112,94060.0,94043.0,0.3608]
[1732113699272,0.053116,94053.0,94043.0,0.3608]
[1732113699473,0.23704269,94060.0,94035.0,0.3608]
[1732113699664,0.053119,94048.0,94035.0,0.3608]
[1732113699860,0.05318887,94059.0,94035.0,0.3608]
[1732113700062,7.587e-05,94059.0,94055.0,0.3608]
[1732113700470,7.587e-05,94059.0,94058.0,0.053113]
[1732113700671,0.053099,94084.0,94055.0,0.3608]
[1732113700874,0.1212532,94100.0,94078.0,0.7216]
[1732113701075,0.23704269,94089.0,94063.0,0.3608]
[1732113701270,0.3608,94088.0,94052.0,0.3608]
[1732113701467,0.3608,94076.0,94060.0,0.3608]
[1732113701674,0.053108,94067.0,94060.0,0.3608]
[1732113701875,0.3608,94088.0,94052.0,0.3608]
[1732113702073,0.053111,94062.0,94052.0,0.3608]
[1732113702283,0.053112,94061.0,94051.0,0.0485]
[1732113702784,0.053114,94057.0,94051.0,0.0485]
[1732113702964,0.053103,94076.0,94051.0,0.0485]
[1732113703370,0.59784269,94078.0,94051.0,0.0485]
[1732113703567,0.3608,94078.0,94060.0,0.3608]
[1732113703778,0.0212532,94084.0,94060.0,0.3608]
[1732113703970,0.053111,94062.0,94060.0,0.3608]
[1732113704171,0.3608,94061.0,94031.0,0.3608]
[1732113704377,0.053124,94038.0,94031.0,0.3608]
[1732113704574,0.053128,94033.0,94031.0,0.3608]
[1732113705485,0.3608,94044.0,94012.0,0.053139]
[1732113705486,0.053129,94029.0,94012.0,0.053139]
[1732113705678,0.3608,94035.0,94020.0,0.0496]
[1732113705876,0.3608,94033.0,94020.0,0.0496]
[1732113706178,0.053129,94029.0,94020.0,0.0496]
[1732113706876,0.053129,94029.0,94020.0,0.4104]
[1732113707177,1.5,94043.0,94020.0,0.4104]
[1732113707178,0.00056001,94043.0,94020.0,0.4104]
[1732113707381,0.053129,94030.0,94020.0,0.4104]
[1732113707975,0.053129,94030.0,94029.0,0.3608]
[1732113708182,0.053129,94030.0,94020.0,0.00076]
[1732113708183,0.372169,94030.0,94020.0,0.00076]